[Event "Late-Titled-Tuesday-Blitz-October-17-2023"]
[Site "Chess.com"]
[Date "2023.10.17"]
[Round "1"]
[White "karinachess1"]
[Black "LaPiToB"]
[Result "1-0"]
[WhiteElo "2605"]
[BlackElo "2303"]
[TimeControl "180+1"]
[EndTime "14:05:45 PDT"]
[Termination "karinachess1 won by checkmate"]

1. d4 {[%clk 0:03:00.9]} 1... Nf6 {[%clk 0:02:59.4]} 2. c4 {[%clk 0:03:01]} 2...
e6 {[%clk 0:02:59.6]} 3. Nc3 {[%clk 0:03:01.1]} 3... Bb4 {[%clk 0:02:59.1]} 4.
Qc2 {[%clk 0:03:01.5]} 4... O-O {[%clk 0:02:58.1]} 5. a3 {[%clk 0:03:01.9]} 5...
Bxc3+ {[%clk 0:02:54.6]} 6. Qxc3 {[%clk 0:03:02.8]} 6... Ne4 {[%clk 0:02:53.1]}
7. Qc2 {[%clk 0:03:02.5]} 7... d5 {[%clk 0:02:52.8]} 8. Nf3 {[%clk 0:03:02.4]}
8... c5 {[%clk 0:02:50.9]} 9. cxd5 {[%clk 0:03:01.9]} 9... Qxd5 {[%clk
0:02:37.3]} 10. e3 {[%clk 0:02:59.5]} 10... cxd4 {[%clk 0:02:27.4]} 11. Bc4
{[%clk 0:02:58.2]} 11... Qc6 {[%clk 0:02:02.3]} 12. Ne5 {[%clk 0:02:41.9]} 12...
Qc5 {[%clk 0:01:22.2]} 13. Qxe4 {[%clk 0:02:40.9]} 13... f6 {[%clk 0:01:22.6]}
14. exd4 {[%clk 0:02:26.2]} 14... Qc7 {[%clk 0:01:17.1]} 15. Bd3 {[%clk
0:02:17.5]} 15... fxe5 {[%clk 0:00:37]} 16. Qxh7+ {[%clk 0:02:17.2]} 16... Kf7
{[%clk 0:00:37.4]} 17. Bg6+ {[%clk 0:01:47.7]} 17... Kf6 {[%clk 0:00:36.6]} 18.
h4 {[%clk 0:01:48.2]} 18... exd4 {[%clk 0:00:36.4]} 19. Bg5+ {[%clk 0:01:42.6]}
19... Ke5 {[%clk 0:00:36.6]} 20. O-O {[%clk 0:01:42.4]} 20... Kd5 {[%clk
0:00:35.9]} 21. Rac1 {[%clk 0:01:36.3]} 21... Nc6 {[%clk 0:00:35.2]} 22. Rfd1
{[%clk 0:01:27.2]} 22... e5 {[%clk 0:00:35.1]} 23. Be4+ {[%clk 0:01:14.4]} 23...
Kd6 {[%clk 0:00:35]} 24. f4 {[%clk 0:01:14.6]} 24... Bg4 {[%clk 0:00:33.7]} 25.
fxe5+ {[%clk 0:01:11.5]} 25... Kxe5 {[%clk 0:00:33.5]} 26. Re1 {[%clk
0:01:10.7]} 26... Kd6 {[%clk 0:00:17.5]} 27. Qg6+ {[%clk 0:01:10.6]} 27... Be6
{[%clk 0:00:15.8]} 28. Bxc6 {[%clk 0:01:10.4]} 28... bxc6 {[%clk 0:00:14.8]} 29.
Qxe6# {[%clk 0:01:09.9]} 1-0

[Event "Late-Titled-Tuesday-Blitz-October-17-2023"]
[Site "Chess.com"]
[Date "2023.10.17"]
[Round "1"]
[White "UK_23"]
[Black "ozates"]
[Result "0-1"]
[WhiteElo "2404"]
[BlackElo "2718"]
[TimeControl "180+1"]
[EndTime "14:05:50 PDT"]
[Termination "ozates won by checkmate"]

1. e4 {[%clk 0:03:00.9]} 1... e5 {[%clk 0:02:59.1]} 2. Nf3 {[%clk 0:03:01]} 2...
Nc6 {[%clk 0:02:59.1]} 3. Bc4 {[%clk 0:03:01.7]} 3... Bc5 {[%clk 0:02:59.6]} 4.
O-O {[%clk 0:03:01.5]} 4... Nf6 {[%clk 0:02:59.5]} 5. d3 {[%clk 0:03:01.7]} 5...
h6 {[%clk 0:02:56.8]} 6. c3 {[%clk 0:03:01.8]} 6... d6 {[%clk 0:02:56.8]} 7. b4
{[%clk 0:02:59]} 7... Bb6 {[%clk 0:02:56.9]} 8. a4 {[%clk 0:02:59.7]} 8... a6
{[%clk 0:02:56.3]} 9. Nbd2 {[%clk 0:02:57.8]} 9... Ne7 {[%clk 0:02:49.9]} 10.
Qb3 {[%clk 0:02:46.5]} 10... O-O {[%clk 0:02:48.3]} 11. a5 {[%clk 0:02:46.2]}
11... Ba7 {[%clk 0:02:48.1]} 12. h3 {[%clk 0:02:46.8]} 12... Ng6 {[%clk
0:02:46.9]} 13. Re1 {[%clk 0:02:46.2]} 13... c6 {[%clk 0:02:46.6]} 14. d4 {[%clk
0:02:37.8]} 14... Nh5 {[%clk 0:02:33]} 15. Nf1 {[%clk 0:02:26.3]} 15... Qf6
{[%clk 0:02:32]} 16. N1h2 {[%clk 0:02:14.4]} 16... Nhf4 {[%clk 0:02:25.7]} 17.
Be3 {[%clk 0:02:00]} 17... Be6 {[%clk 0:02:12.7]} 18. Rad1 {[%clk 0:01:54.7]}
18... d5 {[%clk 0:02:05.1]} 19. exd5 {[%clk 0:01:52.5]} 19... cxd5 {[%clk
0:02:06]} 20. Bf1 {[%clk 0:01:45.4]} 20... e4 {[%clk 0:02:05.1]} 21. Nd2 {[%clk
0:01:26.9]} 21... Bb8 {[%clk 0:02:03.4]} 22. Ng4 {[%clk 0:01:12.9]} 22... Qh4
{[%clk 0:01:48.1]} 23. f3 {[%clk 0:00:09.5]} 23... Qg3 {[%clk 0:01:25]} 24. Kh1
{[%clk 0:00:05.2]} 24... Bxg4 {[%clk 0:01:17.1]} 25. fxg4 {[%clk 0:00:04]} 25...
Nxh3 {[%clk 0:01:13.1]} 26. gxh3 {[%clk 0:00:03.4]} 26... Qh2# {[%clk
0:01:13.2]} 0-1

[Event "Late-Titled-Tuesday-Blitz-October-17-2023"]
[Site "Chess.com"]
[Date "2023.10.17"]
[Round "1"]
[White "GadimbayliA"]
[Black "Haykoooo0o"]
[Result "1-0"]
[WhiteElo "2833"]
[BlackElo "2444"]
[TimeControl "180+1"]
[EndTime "14:06:05 PDT"]
[Termination "GadimbayliA won by checkmate"]

1. e4 {[%clk 0:02:59.7]} 1... c6 {[%clk 0:02:58.7]} 2. Nf3 {[%clk 0:02:59.6]}
2... d5 {[%clk 0:02:59.6]} 3. exd5 {[%clk 0:03:00.5]} 3... cxd5 {[%clk
0:03:00.1]} 4. Ne5 {[%clk 0:03:01.2]} 4... Nc6 {[%clk 0:02:59.6]} 5. d4 {[%clk
0:03:01.5]} 5... Nf6 {[%clk 0:02:55.5]} 6. c3 {[%clk 0:03:01.4]} 6... e6 {[%clk
0:02:42.3]} 7. Nd2 {[%clk 0:03:01]} 7... Nxe5 {[%clk 0:02:42.3]} 8. dxe5 {[%clk
0:03:01.9]} 8... Nd7 {[%clk 0:02:43]} 9. Nf3 {[%clk 0:03:02.6]} 9... Bc5 {[%clk
0:02:42.9]} 10. Bd3 {[%clk 0:03:02.3]} 10... Qc7 {[%clk 0:02:42.9]} 11. Qe2
{[%clk 0:03:02.5]} 11... O-O {[%clk 0:02:26.6]} 12. O-O {[%clk 0:03:02.6]} 12...
f5 {[%clk 0:02:21.6]} 13. exf6 {[%clk 0:02:51.7]} 13... Nxf6 {[%clk 0:02:21.2]}
14. Bg5 {[%clk 0:02:51.5]} 14... Bd7 {[%clk 0:02:15.9]} 15. Ne5 {[%clk
0:02:43.7]} 15... Bd6 {[%clk 0:02:07.7]} 16. Rae1 {[%clk 0:02:41.6]} 16... Bxe5
{[%clk 0:02:04.1]} 17. Qxe5 {[%clk 0:02:42.5]} 17... Qxe5 {[%clk 0:02:05]} 18.
Rxe5 {[%clk 0:02:43.2]} 18... a6 {[%clk 0:01:59.5]} 19. f3 {[%clk 0:02:38.7]}
19... Kf7 {[%clk 0:01:57.8]} 20. Rd1 {[%clk 0:02:34.6]} 20... h6 {[%clk
0:01:55.7]} 21. Bh4 {[%clk 0:02:31.9]} 21... Rac8 {[%clk 0:01:52.4]} 22. Bc2
{[%clk 0:02:18.5]} 22... Rfe8 {[%clk 0:01:48.6]} 23. Bf2 {[%clk 0:02:16.6]}
23... b5 {[%clk 0:01:32.4]} 24. a3 {[%clk 0:02:15.7]} 24... a5 {[%clk
0:01:32.4]} 25. h4 {[%clk 0:01:54]} 25... h5 {[%clk 0:00:33.4]} 26. Bb6 {[%clk
0:01:50.2]} 26... Ra8 {[%clk 0:00:29.5]} 27. Bd4 {[%clk 0:01:43.6]} 27... Rec8
{[%clk 0:00:28.3]} 28. Rg5 {[%clk 0:01:42.7]} 28... b4 {[%clk 0:00:24.5]} 29.
axb4 {[%clk 0:01:41.2]} 29... axb4 {[%clk 0:00:24.9]} 30. Bg6+ {[%clk
0:01:42.1]} 30... Ke7 {[%clk 0:00:24.7]} 31. cxb4 {[%clk 0:01:42.1]} 31... Rab8
{[%clk 0:00:18.3]} 32. Bc5+ {[%clk 0:01:38.3]} 32... Rxc5 {[%clk 0:00:18.2]} 33.
bxc5 {[%clk 0:01:39.2]} 33... Rxb2 {[%clk 0:00:19.1]} 34. Bxh5 {[%clk
0:01:39.4]} 34... Rc2 {[%clk 0:00:18.4]} 35. Rxg7+ {[%clk 0:01:38.4]} 35... Kd8
{[%clk 0:00:18.2]} 36. Bg6 {[%clk 0:01:37]} 36... Rxc5 {[%clk 0:00:17.9]} 37. h5
{[%clk 0:01:37.4]} 37... Be8 {[%clk 0:00:18.2]} 38. Bxe8 {[%clk 0:01:32.6]}
38... Kxe8 {[%clk 0:00:18.2]} 39. h6 {[%clk 0:01:32.6]} 39... Kf8 {[%clk
0:00:18.5]} 40. Ra1 {[%clk 0:01:30.3]} 40... Rc8 {[%clk 0:00:18.3]} 41. Raa7
{[%clk 0:01:30.9]} 41... Ne8 {[%clk 0:00:17.7]} 42. Raf7# {[%clk 0:01:30.8]} 1-0

[Event "Late-Titled-Tuesday-Blitz-October-17-2023"]
[Site "Chess.com"]
[Date "2023.10.17"]
[Round "1"]
[White "MKlose11"]
[Black "norwaytoadog"]
[Result "1-0"]
[WhiteElo "2627"]
[BlackElo "2324"]
[TimeControl "180+1"]
[EndTime "14:06:05 PDT"]
[Termination "MKlose11 won on time"]

1. e4 {[%clk 0:03:00.9]} 1... c5 {[%clk 0:03:00]} 2. Nc3 {[%clk 0:03:00.6]} 2...
Nc6 {[%clk 0:03:00.1]} 3. g3 {[%clk 0:03:01.5]} 3... g6 {[%clk 0:03:00]} 4. d3
{[%clk 0:03:02.4]} 4... Bg7 {[%clk 0:02:59.6]} 5. Be3 {[%clk 0:03:03.1]} 5... d6
{[%clk 0:02:59.2]} 6. Qd2 {[%clk 0:03:03.6]} 6... Rb8 {[%clk 0:02:59.5]} 7. Bg2
{[%clk 0:03:03.4]} 7... b5 {[%clk 0:02:59.9]} 8. Nge2 {[%clk 0:03:04.1]} 8... b4
{[%clk 0:03:00.2]} 9. Nd1 {[%clk 0:03:04.7]} 9... Nd4 {[%clk 0:02:59.6]} 10. O-O
{[%clk 0:03:03.6]} 10... e6 {[%clk 0:02:59.1]} 11. Nc1 {[%clk 0:03:02.8]} 11...
Ne7 {[%clk 0:02:52]} 12. c3 {[%clk 0:03:02.9]} 12... Ndc6 {[%clk 0:02:43.9]} 13.
Bh6 {[%clk 0:03:02.5]} 13... O-O {[%clk 0:02:40.9]} 14. Bxg7 {[%clk 0:03:01]}
14... Kxg7 {[%clk 0:02:41.7]} 15. d4 {[%clk 0:02:56.5]} 15... Ba6 {[%clk
0:02:25.3]} 16. Re1 {[%clk 0:02:55.4]} 16... Na5 {[%clk 0:02:24.3]} 17. Ne3
{[%clk 0:02:53.5]} 17... f5 {[%clk 0:02:06.4]} 18. Nb3 {[%clk 0:02:27.1]} 18...
Nc4 {[%clk 0:01:50.6]} 19. Nxc4 {[%clk 0:02:25.8]} 19... Bxc4 {[%clk 0:01:51.5]}
20. dxc5 {[%clk 0:02:23.4]} 20... dxc5 {[%clk 0:01:33.4]} 21. exf5 {[%clk
0:02:03.8]} 21... Nxf5 {[%clk 0:01:07]} 22. Qxd8 {[%clk 0:02:01.7]} 22... Rfxd8
{[%clk 0:01:05.8]} 23. Nxc5 {[%clk 0:02:02.6]} 23... bxc3 {[%clk 0:00:58.6]} 24.
bxc3 {[%clk 0:02:01.7]} 24... Kf7 {[%clk 0:00:57.5]} 25. a4 {[%clk 0:01:50.2]}
25... Rb2 {[%clk 0:00:49.4]} 26. Rab1 {[%clk 0:01:47.4]} 26... Rdd2 {[%clk
0:00:48.6]} 27. Rxb2 {[%clk 0:01:47]} 27... Rxb2 {[%clk 0:00:48.5]} 28. Ne4
{[%clk 0:01:42.4]} 28... Ra2 {[%clk 0:00:46.2]} 29. g4 {[%clk 0:01:42.2]} 29...
Nh4 {[%clk 0:00:25.1]} 30. Nd6+ {[%clk 0:01:41.1]} 30... Kf6 {[%clk 0:00:26]}
31. Nxc4 {[%clk 0:01:42]} 31... Rxa4 {[%clk 0:00:26.2]} 32. Ne3 {[%clk
0:01:40.3]} 32... h5 {[%clk 0:00:19.8]} 33. gxh5 {[%clk 0:01:39.2]} 33... gxh5
{[%clk 0:00:20.2]} 34. Rc1 {[%clk 0:01:39.8]} 34... Ke5 {[%clk 0:00:18.1]} 35.
c4 {[%clk 0:01:40.1]} 35... Kf4 {[%clk 0:00:11.4]} 36. c5 {[%clk 0:01:39.5]}
36... Ra2 {[%clk 0:00:10.6]} 37. c6 {[%clk 0:01:38.7]} 1-0

[Event "Late-Titled-Tuesday-Blitz-October-17-2023"]
[Site "Chess.com"]
[Date "2023.10.17"]
[Round "1"]
[White "LogoCzar"]
[Black "KChor05TTV"]
[Result "1-0"]
[WhiteElo "2384"]
[BlackElo "2662"]
[TimeControl "180+1"]
[EndTime "14:06:08 PDT"]
[Termination "LogoCzar won by resignation"]

1. e4 {[%clk 0:02:58.5]} 1... c5 {[%clk 0:03:00]} 2. Nf3 {[%clk 0:02:58]} 2...
g6 {[%clk 0:02:59.3]} 3. d4 {[%clk 0:02:57.6]} 3... cxd4 {[%clk 0:03:00.2]} 4.
Nxd4 {[%clk 0:02:57.6]} 4... Nf6 {[%clk 0:02:58.9]} 5. Nc3 {[%clk 0:02:57.4]}
5... Nc6 {[%clk 0:02:58.8]} 6. Bc4 {[%clk 0:02:54.1]} 6... Bg7 {[%clk
0:02:58.5]} 7. Nxc6 {[%clk 0:02:49.6]} 7... bxc6 {[%clk 0:02:51.5]} 8. e5 {[%clk
0:02:49.2]} 8... Ng8 {[%clk 0:02:49.7]} 9. Qf3 {[%clk 0:02:44.1]} 9... e6 {[%clk
0:02:45.5]} 10. Bf4 {[%clk 0:02:28.8]} 10... Qa5 {[%clk 0:02:33.5]} 11. O-O-O
{[%clk 0:02:24.1]} 11... Bxe5 {[%clk 0:02:19.3]} 12. Bxe5 {[%clk 0:02:20.9]}
12... Qxe5 {[%clk 0:02:20.2]} 13. Rhe1 {[%clk 0:02:20.4]} 13... Qg5+ {[%clk
0:02:18.2]} 14. Kb1 {[%clk 0:02:19.6]} 14... Nf6 {[%clk 0:01:51.3]} 15. g3
{[%clk 0:02:18.4]} 15... d5 {[%clk 0:01:42.6]} 16. h4 {[%clk 0:02:14]} 16... Qf5
{[%clk 0:01:38.5]} 17. Qg2 {[%clk 0:02:08.4]} 17... O-O {[%clk 0:01:20]} 18. Bd3
{[%clk 0:02:07]} 18... Qh5 {[%clk 0:01:18.1]} 19. Be2 {[%clk 0:02:00.4]} 19...
Qh6 {[%clk 0:01:17.3]} 20. g4 {[%clk 0:01:57.7]} 20... Qxh4 {[%clk 0:01:08.2]}
21. g5 {[%clk 0:01:56.9]} 21... Ne4 {[%clk 0:01:08.4]} 22. Nxe4 {[%clk
0:01:52.1]} 22... Qxe4 {[%clk 0:01:08.1]} 23. Qh2 {[%clk 0:01:39.9]} 23... h5
{[%clk 0:00:50.3]} 24. Bxh5 {[%clk 0:01:38.3]} 24... Qf5 {[%clk 0:00:47.2]} 25.
Re5 {[%clk 0:01:21]} 25... gxh5 {[%clk 0:00:39.4]} 26. Rxf5 {[%clk 0:01:20.2]}
26... exf5 {[%clk 0:00:40.3]} 27. Qxh5 {[%clk 0:01:19.9]} 27... Re8 {[%clk
0:00:37.5]} 28. g6 {[%clk 0:01:16.5]} 28... Be6 {[%clk 0:00:33.8]} 29. Rg1
{[%clk 0:01:10.3]} 29... Kf8 {[%clk 0:00:32.1]} 30. Qh4 {[%clk 0:01:01]} 30...
fxg6 {[%clk 0:00:26.9]} 31. Qf6+ {[%clk 0:01:00.2]} 31... Bf7 {[%clk 0:00:26.7]}
32. Rh1 {[%clk 0:00:59.9]} 1-0

[Event "Late-Titled-Tuesday-Blitz-October-17-2023"]
[Site "Chess.com"]
[Date "2023.10.17"]
[Round "1"]
[White "Elbebiber"]
[Black "Emp3rador"]
[Result "0-1"]
[WhiteElo "2139"]
[BlackElo "2533"]
[TimeControl "180+1"]
[EndTime "14:06:09 PDT"]
[Termination "Emp3rador won by resignation"]

1. d4 {[%clk 0:03:00.9]} 1... d5 {[%clk 0:02:50.3]} 2. Bf4 {[%clk 0:02:59.2]}
2... Nf6 {[%clk 0:02:49]} 3. Nf3 {[%clk 0:02:59.1]} 3... c5 {[%clk 0:02:47.2]}
4. e3 {[%clk 0:02:58.2]} 4... Nc6 {[%clk 0:02:47.7]} 5. c3 {[%clk 0:02:57.6]}
5... Qb6 {[%clk 0:02:20.9]} 6. Qb3 {[%clk 0:02:56.5]} 6... c4 {[%clk 0:02:19.5]}
7. Qc2 {[%clk 0:02:56.7]} 7... Bf5 {[%clk 0:02:18.1]} 8. Qc1 {[%clk 0:02:56.9]}
8... e6 {[%clk 0:02:18.5]} 9. Nbd2 {[%clk 0:02:53.2]} 9... Rc8 {[%clk
0:02:17.7]} 10. Be2 {[%clk 0:02:47.8]} 10... Nh5 {[%clk 0:02:10.6]} 11. O-O
{[%clk 0:02:37.1]} 11... Nxf4 {[%clk 0:02:09.6]} 12. exf4 {[%clk 0:02:37.2]}
12... Bd6 {[%clk 0:02:09]} 13. g3 {[%clk 0:02:35.9]} 13... O-O {[%clk
0:02:08.6]} 14. Ne5 {[%clk 0:02:35.1]} 14... Rfd8 {[%clk 0:02:03.2]} 15. Re1
{[%clk 0:02:28.2]} 15... Nxe5 {[%clk 0:01:55.1]} 16. fxe5 {[%clk 0:02:26.4]}
16... Be7 {[%clk 0:01:55.8]} 17. Kg2 {[%clk 0:02:07]} 17... Qa5 {[%clk
0:01:50.4]} 18. f4 {[%clk 0:01:57]} 18... b5 {[%clk 0:01:48.6]} 19. a3 {[%clk
0:01:53]} 19... Qb6 {[%clk 0:01:48.6]} 20. Rf1 {[%clk 0:01:33.5]} 20... a5
{[%clk 0:01:39.1]} 21. g4 {[%clk 0:01:28.2]} 21... Bg6 {[%clk 0:01:22.9]} 22. f5
{[%clk 0:01:19.5]} 22... exf5 {[%clk 0:01:22.3]} 23. gxf5 {[%clk 0:01:19.5]}
23... Bxf5 {[%clk 0:01:22.9]} 24. Rxf5 {[%clk 0:01:03.4]} 24... Qg6+ {[%clk
0:01:20.8]} 25. Kh1 {[%clk 0:00:51.6]} 25... Qxf5 {[%clk 0:01:20.7]} 26. Qg1
{[%clk 0:00:27.2]} 26... Rc6 {[%clk 0:01:08.9]} 27. Bg4 {[%clk 0:00:19.6]} 27...
Qd3 {[%clk 0:01:07.2]} 28. Nf3 {[%clk 0:00:17]} 28... Rg6 {[%clk 0:01:07]} 29.
Rd1 {[%clk 0:00:05.4]} 29... Rxg4 {[%clk 0:01:04.8]} 30. Rxd3 {[%clk 0:00:02.7]}
30... Rxg1+ {[%clk 0:01:04.7]} 31. Kxg1 {[%clk 0:00:03.6]} 31... cxd3 {[%clk
0:01:05.2]} 0-1

[Event "Late-Titled-Tuesday-Blitz-October-17-2023"]
[Site "Chess.com"]
[Date "2023.10.17"]
[Round "1"]
[White "MikeSailer"]
[Black "amanmuhammethommadov"]
[Result "0-1"]
[WhiteElo "2088"]
[BlackElo "2527"]
[TimeControl "180+1"]
[EndTime "14:06:09 PDT"]
[Termination "amanmuhammethommadov won on time"]

1. d4 {[%clk 0:02:58.8]} 1... Nf6 {[%clk 0:02:59.5]} 2. Bg5 {[%clk 0:02:55.2]}
2... c5 {[%clk 0:02:58.7]} 3. d5 {[%clk 0:02:53.7]} 3... g6 {[%clk 0:02:57.5]}
4. Bxf6 {[%clk 0:02:51.7]} 4... exf6 {[%clk 0:02:58.4]} 5. c4 {[%clk 0:02:46.4]}
5... d6 {[%clk 0:02:58.6]} 6. Nc3 {[%clk 0:02:46.8]} 6... Bg7 {[%clk 0:02:59.2]}
7. g3 {[%clk 0:02:46.8]} 7... f5 {[%clk 0:02:59.4]} 8. Bg2 {[%clk 0:02:47.1]}
8... O-O {[%clk 0:02:59.9]} 9. e3 {[%clk 0:02:47.7]} 9... Na6 {[%clk 0:03:00.1]}
10. Nge2 {[%clk 0:02:48]} 10... Nc7 {[%clk 0:02:59.6]} 11. O-O {[%clk
0:02:48.6]} 11... Rb8 {[%clk 0:02:57.1]} 12. a4 {[%clk 0:02:45.4]} 12... a6
{[%clk 0:02:55.8]} 13. a5 {[%clk 0:02:26.3]} 13... b5 {[%clk 0:02:51]} 14. axb6
{[%clk 0:02:26.8]} 14... Rxb6 {[%clk 0:02:50.6]} 15. Ra2 {[%clk 0:02:07.5]}
15... Bd7 {[%clk 0:02:49.8]} 16. h4 {[%clk 0:02:04.6]} 16... h5 {[%clk 0:02:49]}
17. Qc2 {[%clk 0:01:56.5]} 17... Qb8 {[%clk 0:02:42.3]} 18. Rfa1 {[%clk
0:01:54.9]} 18... Qb7 {[%clk 0:02:37.8]} 19. e4 {[%clk 0:01:39.1]} 19... Rb8
{[%clk 0:02:33.6]} 20. exf5 {[%clk 0:01:36.3]} 20... Bxf5 {[%clk 0:02:33.2]} 21.
Be4 {[%clk 0:01:36.4]} 21... Bg4 {[%clk 0:02:02]} 22. f3 {[%clk 0:01:22.8]}
22... Bd7 {[%clk 0:02:00.8]} 23. Bxg6 {[%clk 0:01:11.3]} 23... fxg6 {[%clk
0:02:00.1]} 24. Qxg6 {[%clk 0:01:11]} 24... Be8 {[%clk 0:01:59.6]} 25. Qf5
{[%clk 0:01:03]} 25... Qc8 {[%clk 0:01:55]} 26. Qc2 {[%clk 0:00:52.6]} 26... Rb4
{[%clk 0:01:45.6]} 27. Ne4 {[%clk 0:00:45.6]} 27... Rxb2 {[%clk 0:01:42.1]} 28.
Rxb2 {[%clk 0:00:27.8]} 28... Rxb2 {[%clk 0:01:43]} 29. Nxd6 {[%clk 0:00:15.2]}
29... Qh3 {[%clk 0:01:32.5]} 30. Qe4 {[%clk 0:00:07.7]} 30... Rxe2 {[%clk
0:01:22.6]} 31. Qxe2 {[%clk 0:00:07.6]} 31... Bd4+ {[%clk 0:01:21.5]} 0-1

[Event "Late-Titled-Tuesday-Blitz-October-17-2023"]
[Site "Chess.com"]
[Date "2023.10.17"]
[Round "1"]
[White "brunomorado"]
[Black "nochewycandy"]
[Result "1-0"]
[WhiteElo "2447"]
[BlackElo "2758"]
[TimeControl "180+1"]
[EndTime "14:06:13 PDT"]
[Termination "brunomorado won by resignation"]

1. d4 {[%clk 0:03:00.1]} 1... Nf6 {[%clk 0:02:57]} 2. Nc3 {[%clk 0:03:01]} 2...
d5 {[%clk 0:02:54.8]} 3. Bg5 {[%clk 0:03:01.5]} 3... Nbd7 {[%clk 0:02:54.3]} 4.
Qd3 {[%clk 0:03:01.8]} 4... e6 {[%clk 0:02:53.8]} 5. e4 {[%clk 0:03:01.6]} 5...
dxe4 {[%clk 0:02:51.8]} 6. Nxe4 {[%clk 0:03:02.5]} 6... Be7 {[%clk 0:02:52.1]}
7. Bxf6 {[%clk 0:03:03]} 7... Nxf6 {[%clk 0:02:53]} 8. g3 {[%clk 0:03:03.6]}
8... O-O {[%clk 0:02:48.7]} 9. Bg2 {[%clk 0:03:03.6]} 9... Rb8 {[%clk
0:02:36.8]} 10. Ne2 {[%clk 0:03:02.8]} 10... Nxe4 {[%clk 0:02:25.7]} 11. Bxe4
{[%clk 0:03:03.7]} 11... f5 {[%clk 0:02:26.6]} 12. Bg2 {[%clk 0:03:03.4]} 12...
Bf6 {[%clk 0:02:27.5]} 13. O-O-O {[%clk 0:03:01.1]} 13... c6 {[%clk 0:02:22.5]}
14. Rhe1 {[%clk 0:03:00.9]} 14... a5 {[%clk 0:02:16.9]} 15. h4 {[%clk 0:03:01]}
15... a4 {[%clk 0:02:14.8]} 16. Nf4 {[%clk 0:02:58.9]} 16... Qd6 {[%clk
0:02:11.8]} 17. Qc4 {[%clk 0:02:39.5]} 17... Re8 {[%clk 0:01:32.1]} 18. d5
{[%clk 0:02:38.7]} 18... a3 {[%clk 0:01:30.1]} 19. dxe6 {[%clk 0:02:21.9]} 19...
axb2+ {[%clk 0:01:16.5]} 20. Kb1 {[%clk 0:02:21.6]} 20... b5 {[%clk 0:01:05.1]}
21. Qxc6 {[%clk 0:01:58.5]} 21... Qxc6 {[%clk 0:00:54.7]} 22. Bxc6 {[%clk
0:01:59.4]} 22... Bb7 {[%clk 0:00:48.2]} 23. Bxe8 {[%clk 0:01:50.3]} 23... Rxe8
{[%clk 0:00:49.1]} 24. Nd5 {[%clk 0:01:48.1]} 24... Bxd5 {[%clk 0:00:28.8]} 25.
Rxd5 {[%clk 0:01:49]} 25... g6 {[%clk 0:00:29.4]} 26. Rxb5 {[%clk 0:01:43.6]}
26... Re7 {[%clk 0:00:23.9]} 27. Rd5 {[%clk 0:01:37.7]} 27... f4 {[%clk
0:00:20.9]} 28. Rd7 {[%clk 0:01:36.6]} 28... Re8 {[%clk 0:00:20.9]} 29. e7
{[%clk 0:01:23.6]} 29... Kf7 {[%clk 0:00:20.3]} 30. Rd8 {[%clk 0:01:23.4]} 30...
Rxe7 {[%clk 0:00:12.3]} 31. Rxe7+ {[%clk 0:01:23.2]} 31... Kxe7 {[%clk
0:00:13.2]} 32. Rb8 {[%clk 0:01:20.7]} 32... f3 {[%clk 0:00:11.7]} 33. Rb3
{[%clk 0:01:19.7]} 33... Ke6 {[%clk 0:00:11.3]} 34. Rxf3 {[%clk 0:01:20.2]}
34... Bd4 {[%clk 0:00:11.2]} 35. a4 {[%clk 0:01:18.4]} 35... Kd5 {[%clk
0:00:11.2]} 36. Rd3 {[%clk 0:01:17.2]} 36... Kc4 {[%clk 0:00:11.2]} 37. Rxd4+
{[%clk 0:01:17.3]} 37... Kxd4 {[%clk 0:00:12.1]} 38. Kxb2 {[%clk 0:01:16.7]}
38... Ke4 {[%clk 0:00:11.8]} 39. a5 {[%clk 0:01:17]} 39... Kf3 {[%clk
0:00:12.7]} 40. a6 {[%clk 0:01:17.2]} 40... Kxf2 {[%clk 0:00:13.6]} 41. a7
{[%clk 0:01:17.9]} 41... h5 {[%clk 0:00:13.6]} 42. a8=Q {[%clk 0:01:18.8]} 42...
Kxg3 {[%clk 0:00:14.3]} 43. Qd8 {[%clk 0:01:18.6]} 43... Kh3 {[%clk 0:00:12.8]}
44. Qg5 {[%clk 0:01:19.5]} 1-0